bitfinex-derivatives/quotes_SOLF0:USTF0_20250106
["timestamp","ask_amount","ask_price","bid_price","bid_amount"]
[1736132909666,2.3117,216.34,216.3,2.3121]
[1736132910268,7.23143648,216.35,216.29,2.78]
[1736132910470,7.23143648,216.35,216.31,2.3119]
[1736132911364,7.23143648,216.35,216.3,2.78]
[1736132912367,9.54303648,216.35,216.3,5.0921]
[1736132915380,3.0006,216.38,216.21,1.3953]
[1736132915381,7.23143648,216.31,216.21,1.3953]
[1736132915561,9.54343648,216.31,216.22,2.78]
[1736132915766,9.54343648,216.31,216.24,7.23143648]
[1736132916364,9.54343648,216.31,216.26,2.3125]
[1736132916561,7.23143648,216.27,216.12,18.75922882]
[1736132916762,7.23143648,216.25,216.18,7.23143648]
[1736132917573,9.54413648,216.25,216.2,2.3132]
[1736132917974,9.54413648,216.25,216.2,5.0932]
[1736132918272,7.23143648,216.25,216.2,2.78]
[1736132918468,9.54433648,216.23,216.19,2.78]
[1736132919971,2.3127,216.25,216.19,5.0933]
[1736132920277,7.23143648,216.28,216.21,7.23143648]
[1736132920675,7.23143648,216.28,216.24,2.3128]
[1736132921076,9.54383648,216.28,216.23,2.3129]
[1736132923077,7.23143648,216.28,216.21,7.23143648]
[1736132923469,7.23143648,216.3,216.23,7.23143648]
[1736132923675,7.23143648,216.3,216.25,7.23143648]
[1736132923876,7.23143648,216.3,216.27,2.3124]
[1736132924076,7.23143648,216.3,216.25,10.01143648]
[1736132924783,9.54343648,216.32,216.25,10.01143648]
[1736132925374,9.54343648,216.32,216.26,2.3126]
[1736132925880,9.54343648,216.32,216.25,10.01143648]
[1736132925881,9.54343648,216.32,216.27,2.3124]
[1736132926078,7.23143648,216.32,216.25,10.01143648]
[1736132926478,7.23143648,216.32,216.28,2.3123]
[1736132927473,7.23143648,216.32,216.27,2.3124]
[1736132930180,9.54363648,216.3,216.18,2.3134]
[1736132930383,7.23143648,216.24,216.19,2.78]
[1736132930585,7.23143648,216.22,216.19,2.78]
[1736132930785,7.23143648,216.22,216.14,7.23143648]
[1736132930987,7.23143648,216.22,216.15,2.78]
[1736132931186,7.23143648,216.22,216.14,7.23143648]
[1736132931394,7.23143648,216.2,216.17,2.3135]
[1736132931682,7.23143648,216.2,216.17,5.0935]
[1736132932084,7.23143648,216.2,216.15,2.3136]
[1736132932288,1.3777,216.28,216.15,2.78]
[1736132932289,4.1577,216.28,216.15,2.78]
[1736132932484,7.23143648,216.18,216.15,2.78]
[1736132935486,2.3134,216.19,216.15,2.78]
[1736132936691,7.23143648,216.2,216.15,2.78]
[1736132937987,2.3128,216.25,216.17,2.3134]
[1736132938190,7.23143648,216.24,216.17,7.23143648]
[1736132939191,1.3777,216.28,216.19,7.23143648]
[1736132939491,7.23143648,216.25,216.19,7.23143648]
[1736132939691,9.54413648,216.25,216.19,9.54473648]
[1736132940188,7.23143648,216.25,216.19,2.3133]
[1736132940486,7.23143648,216.21,216.17,2.78]
[1736132940693,7.23143648,216.19,216.17,2.78]
[1736132942192,9.54483648,216.19,216.17,2.78]
[1736132943587,7.23143648,216.19,216.17,2.78]
[1736132943791,9.54463648,216.21,216.17,2.78]
[1736132945789,7.23143648,216.23,216.17,2.78]
[1736132946094,9.54443648,216.23,216.17,2.78]
[1736132946594,2.3128,216.25,216.18,7.23143648]
[1736132946794,9.54423648,216.25,216.18,7.23143648]
[1736132947294,2.3128,216.25,216.18,7.23143648]
[1736132947494,9.54423648,216.25,216.19,2.3133]
[1736132947698,2.3128,216.24,216.19,2.3133]
[1736132949891,2.3128,216.24,216.18,7.23143648]
[1736132950098,9.54433648,216.23,216.17,5.0934]
[1736132950298,7.23143648,216.21,216.17,2.78]
[1736132950899,2.3132,216.2,216.17,2.78]
[1736132952598,7.23143648,216.21,216.07,2.9161]
[1736132952599,2.3134,216.18,216.15,2.78]
[1736132953197,2.3134,216.18,216.07,2.9161]
[1736132953198,7.23143648,216.17,216.07,2.9161]
[1736132953401,7.23143648,216.17,216.09,7.23143648]
[1736132953899,7.23143648,216.13,216.03,45.52599534]
[1736132954203,7.23143648,216.13,216.07,7.23143648]
[1736132954997,7.23143648,216.13,216.08,2.3145]
[1736132955394,7.23143648,216.16,216.11,7.23143648]
[1736132955591,7.23143648,216.16,216.13,2.3139]
[1736132955791,7.23143648,216.18,216.13,2.3139]
[1736132956000,7.23143648,216.2,216.16,2.3136]
[1736132956893,9.54443648,216.22,216.17,2.3135]
[1736132957198,7.23143648,216.22,216.15,7.23143648]
[1736132957594,7.23143648,216.22,216.16,2.78]
[1736132958198,7.23143648,216.25,216.19,7.23143648]
[1736132958596,7.23143648,216.25,216.21,2.3131]
[1736132958796,7.23143648,216.25,216.19,7.23143648]
[1736132959295,7.23143648,216.23,216.17,7.23143648]
[1736132959501,7.23143648,216.21,216.16,2.78]
[1736132959696,7.23143648,216.21,216.17,2.3135]
[1736132959895,2.78,216.3,216.17,2.3135]
[1736132959896,7.23143648,216.23,216.17,2.3135]
[1736132961397,9.54443648,216.23,216.17,2.3135]
[1736132962700,2.313,216.22,216.17,2.3135]
[1736132964298,2.313,216.22,216.18,2.3134]
[1736132965204,7.23143648,216.23,216.18,2.3134]
[1736132965900,7.23143648,216.19,216.05,46.89525593]
[1736132966095,7.23143648,216.15,216.08,7.23143648]
[1736132966500,7.23143648,216.15,216.12,2.314]
[1736132967003,7.23143648,216.15,216.12,5.094]
[1736132967702,7.23143648,216.17,216.12,2.78]
[1736132969406,7.23143648,216.17,216.13,2.3139]
[1736132970409,9.54493648,216.17,216.13,2.3139]
[1736132970912,9.54473648,216.2,216.15,2.3136]
[1736132971205,7.23143648,216.2,216.13,7.23143648]
[1736132972608,7.23143648,216.2,216.15,2.3137]
[1736132973511,7.23143648,216.2,216.13,7.23143648]
[1736132973704,7.23143648,216.2,216.16,2.3136]
[1736132975912,7.23143648,216.18,216.05,1.3754]
[1736132976112,7.23143648,216.18,216.06,2.78]
[1736132976312,7.23143648,216.18,216.1,7.23143648]
[1736132976613,7.23143648,216.18,216.14,2.3138]
[1736132978515,9.54483648,216.18,216.14,2.3138]
[1736132981017,2.3134,216.18,216.14,2.3138]
[1736132985119,2.3134,216.18,216.12,9.54543648]
[1736132985422,2.3136,216.16,216.12,2.314]
[1736132988226,7.23143648,216.17,216.12,2.314]
[1736132988429,9.54493648,216.17,216.12,2.314]
[1736132989024,2.3135,216.17,216.12,2.314]
[1736132991929,7.23143648,216.19,216.11,10.01143648]
[1736132992129,2.3138,216.15,216.1,2.78]
[1736132992330,7.23143648,216.17,216.1,2.78]
[1736132992527,8.79559158,216.23,216.13,7.23143648]
[1736132992727,2.3134,216.18,216.14,2.3138]
[1736132994332,7.23143648,216.18,216.12,2.314]
[1736132994532,7.23143648,216.18,216.11,7.23143648]
[1736132995433,2.3137,216.16,216.11,9.54553648]
[1736132997125,9.54513648,216.16,216.11,2.3141]
[1736132998028,7.23143648,216.16,216.11,2.3141]
[1736132998330,2.3138,216.15,216.11,2.3141]
[1736132998826,9.54503648,216.16,216.12,2.3141]
[1736133000234,2.3138,216.15,216.11,2.3142]
[1736133000436,7.23143648,216.16,216.1,2.78]
[1736133001031,2.3139,216.14,216.1,5.0942]
[1736133002330,2.3139,216.14,216.05,1.3754]
[1736133002331,2.314,216.13,216.09,2.3144]
[1736133002530,2.78,216.2,216.01,2.7673]
[1736133002531,7.23143648,216.12,216.01,2.7673]
[1736133002730,7.23143648,216.12,216.04,7.23143648]
[1736133002929,2.78,216.2,216.08,7.23143648]
[1736133003141,2.78,216.2,216.1,7.23143648]
[1736133003439,2.78,216.2,216.12,2.3141]
[1736133003440,2.3135,216.17,216.12,2.3141]
[1736133003631,7.23143648,216.18,216.12,2.3141]
[1736133004437,2.3136,216.16,216.12,2.3141]
[1736133006531,2.78,216.2,216.1,7.23143648]
[1736133006744,2.3134,216.19,216.12,7.23143648]
[1736133008441,2.3134,216.19,216.14,2.3138]
[1736133011145,2.3134,216.19,216.15,2.3137]
[1736133011645,2.3134,216.19,216.14,2.3138]
[1736133012748,9.54483648,216.18,216.13,2.314]
[1736133012944,7.23143648,216.16,216.1,2.78]
[1736133013150,7.23143648,216.14,216.1,2.78]
[1736133014548,7.23143648,216.14,216.1,5.0943]
[1736133014751,7.23143648,216.14,216.1,2.78]
[1736133015143,7.23143648,216.14,216.08,2.78]
[1736133015339,9.54533648,216.14,216.09,2.3144]
[1736133015545,9.54533648,216.14,216.08,2.78]
[1736133015745,7.23143648,216.14,216.08,2.78]
[1736133016444,7.23143648,216.12,216.08,2.78]
[1736133017355,9.54553648,216.12,216.08,2.78]
[1736133019954,9.54553648,216.12,216.07,2.3146]
[1736133022452,2.3141,216.12,216.08,2.3144]
[1736133022656,2.3141,216.12,216.08,9.54583648]
[1736133028462,3.47229784,216.2,216.08,7.23143648]
[1736133028764,7.23143648,216.18,216.1,7.23143648]
[1736133028960,7.23143648,216.18,216.11,2.78]
[1736133030567,9.54483648,216.18,216.13,2.3139]
[1736133031160,2.3135,216.17,216.13,2.3139]
[1736133031367,7.23143648,216.16,216.11,5.0941]
[1736133032462,7.23143648,216.18,216.12,7.23143648]
[1736133032663,7.23143648,216.2,216.12,7.23143648]
[1736133033260,2.3135,216.18,216.13,2.3138]
[1736133033660,2.3135,216.18,216.12,7.23143648]
[1736133034560,2.3133,216.19,216.14,2.3138]
[1736133034955,2.3133,216.19,216.14,9.54523648]
[1736133035967,2.3131,216.21,216.16,7.23143648]
[1736133037465,2.3131,216.21,216.17,2.3135]
[1736133038269,2.3131,216.21,216.16,7.23143648]
[1736133038871,2.3131,216.21,216.16,10.01143648]
[1736133040366,2.3131,216.21,216.16,12.32503648]
[1736133040966,2.3131,216.21,216.16,5.0936]
[1736133041172,7.23143648,216.18,216.14,2.78]
[1736133041669,7.23143648,216.18,216.12,5.6959]
[1736133042664,9.54493648,216.18,216.13,2.3139]
[1736133043771,7.23143648,216.18,216.14,2.3138]
[1736133043971,2.3133,216.19,216.13,7.23143648]
[1736133044969,2.3133,216.19,216.14,2.3138]
[1736133046680,7.23143648,216.18,216.14,2.3138]
[1736133047371,2.3133,216.19,216.14,2.3138]
[1736133047576,9.54473648,216.19,216.14,2.3138]
[1736133048373,2.3131,216.21,216.17,2.3135]
[1736133049872,2.3131,216.21,216.15,7.23143648]
[1736133050171,7.23143648,216.2,216.15,2.3136]
[1736133051366,9.54463648,216.2,216.15,2.3136]
[1736133052274,9.54463648,216.2,216.16,2.3136]
[1736133054468,9.54463648,216.2,216.13,7.23143648]
[1736133054672,2.3133,216.19,216.12,5.6959]
[1736133054873,2.3133,216.19,216.13,7.23143648]
[1736133055277,2.3133,216.19,216.15,2.3137]
[1736133055971,7.23143648,216.2,216.13,7.23143648]
[1736133056178,7.23143648,216.2,216.16,2.3136]
[1736133057478,9.54463648,216.2,216.16,2.3136]
[1736133066079,7.23143648,216.2,216.15,2.78]
[1736133066285,6.91625777,216.22,216.18,2.3134]
[1736133068188,2.3126,216.26,216.21,7.23143648]
[1736133068488,126.17108372,216.3,216.23,7.23143648]
[1736133068688,7.23143648,216.29,216.23,7.23143648]
[1736133068889,7.23143648,216.29,216.21,2.78]
[1736133069086,7.23143648,216.29,216.22,7.23143648]
[1736133069488,7.23143648,216.29,216.25,2.3127]
[1736133070588,7.23143648,216.29,216.23,2.3128]
[1736133071786,9.54373648,216.29,216.21,2.78]
[1736133071992,6.23004012,216.35,216.21,5.0931]
[1736133071993,7.23143648,216.25,216.21,5.0931]
[1736133072693,7.23143648,216.23,216.12,2.9159]
[1736133072898,7.23143648,216.23,216.16,7.23143648]
[1736133073197,7.23143648,216.19,216.17,2.76]
[1736133074395,9.54473648,216.19,216.17,2.76]
[1736133074593,3.47141554,216.26,216.14,2.76]
[1736133074798,7.23143648,216.15,216.13,2.76]
[1736133075399,9.54503648,216.17,216.13,2.76]
[1736133075596,2.76,216.24,216.13,2.76]
[1736133075901,7.23143648,216.18,216.14,2.3138]
[1736133078404,9.54493648,216.18,216.13,2.76]
[1736133079004,9.54493648,216.18,216.13,5.0739]
[1736133080211,9.54493648,216.18,216.13,2.3139]
[1736133080397,9.54493648,216.18,216.13,5.0739]
[1736133080601,7.23143648,216.16,215.96,18.75922882]
[1736133080807,7.23143648,216.12,216.08,2.76]
[1736133081707,7.23143648,216.12,216.08,5.0744]
[1736133082107,2.3141,216.13,216.08,5.0744]
[1736133082706,2.3141,216.13,216.08,12.30583648]
[1736133084703,7.23143648,216.12,216.01,2.7665]
[1736133084907,2.3144,216.09,216.04,2.3149]
[1736133085115,7.23143648,216.1,216.05,2.76]
[1736133085315,2.3146,216.07,216.03,7.23143648]
[1736133085608,7.23143648,216.06,216.0,98.45329187]
[1736133085910,7.23143648,216.06,216.01,2.76]
[1736133086408,7.23143648,216.06,216.01,9.99143648]
[1736133086610,2.3147,216.07,216.02,2.3151]
[1736133088209,7.23143648,216.08,216.01,9.99143648]
[1736133088414,2.3147,216.06,216.01,12.30663648]
[1736133090016,2.3148,216.05,216.01,9.99143648]
[1736133090215,7.23143648,216.06,215.99,7.23143648]
[1736133090414,7.23143648,216.06,216.0,2.78]
[1736133090812,2.315,216.04,215.96,2.3157]
[1736133091015,2.315,216.04,215.98,7.23143648]
[1736133091220,7.23143648,216.06,216.0,7.23143648]
[1736133091420,7.23143648,216.08,216.0,7.23143648]
[1736133092210,9.54623648,216.06,216.0,2.3153]
[1736133092416,9.54623648,216.06,216.0,9.54673648]
[1736133092917,2.3149,216.05,216.0,9.54673648]
[1736133093123,7.23143648,216.06,216.0,7.23143648]
[1736133094011,2.3147,216.06,216.02,7.23143648]
[1736133097212,2.3144,216.09,216.04,7.23143648]
[1736133097414,7.23143648,216.11,216.04,7.23143648]
[1736133097617,2.3144,216.09,216.04,9.54623648]
[1736133098214,7.23143648,216.11,216.04,7.23143648]
[1736133099418,2.3144,216.09,216.04,7.23143648]
[1736133100023,7.23143648,216.11,216.04,7.23143648]
[1736133100220,9.54563648,216.11,216.04,7.23143648]
[1736133100922,7.23143648,216.11,216.06,7.23143648]
[1736133101117,2.3141,216.12,216.06,7.23143648]
[1736133101318,7.23143648,216.13,216.06,9.54603648]
[1736133101626,2.3139,216.14,216.08,7.23143648]
[1736133102721,7.23143648,216.16,216.1,7.23143648]
[1736133103423,9.54513648,216.16,216.1,7.23143648]
[1736133103818,7.23143648,216.16,216.1,9.54563648]
[1736133104219,7.23143648,216.16,216.1,7.23143648]
[1736133105122,9.54513648,216.16,216.1,9.54573648]
[1736133108226,9.54513648,216.16,216.1,7.23143648]
[1736133109126,9.54513648,216.16,216.1,9.54573648]
[1736133110223,2.3137,216.15,216.1,7.23143648]
[1736133110823,9.54503648,216.16,216.1,9.54563648]
[1736133112831,4.2012,216.19,216.1,7.23143648]
[1736133113030,7.23143648,216.16,216.11,2.3141]
[1736133113231,2.3135,216.18,216.1,7.23143648]
[1736133113232,9.54493648,216.18,216.1,7.23143648]
[1736133113532,7.23143648,216.18,216.13,2.3139]
[1736133113934,2.3133,216.19,216.13,2.3139]
[1736133114523,2.3132,216.21,216.15,2.3137]
[1736133114832,7.23143648,216.2,216.15,2.3137]
[1736133115228,7.23143648,216.2,216.14,2.76]
[1736133115435,7.23143648,216.2,216.14,9.99143648]
[1736133117334,4.3831,216.25,216.14,9.99143648]
[1736133117534,9.54443648,216.22,216.14,9.99143648]
[1736133118529,2.76,216.26,216.17,2.3135]
[1736133118733,2.7741,216.3,216.14,9.99143648]
[1736133118734,7.23143648,216.24,216.18,7.23143648]
[1736133119440,7.23143648,216.24,216.2,2.3133]
[1736133120235,7.23143648,216.24,216.18,9.54483648]
[1736133120439,9.54433648,216.24,216.18,7.23143648]
[1736133121537,9.54433648,216.24,216.19,2.3133]
[1736133122636,9.54433648,216.24,216.18,7.23143648]
[1736133123639,9.54433648,216.24,216.17,2.3138]
[1736133123841,9.54433648,216.24,216.16,7.23143648]
[1736133125340,2.3129,216.24,216.16,7.23143648]
[1736133125641,7.23143648,216.23,216.18,2.3136]
[1736133125831,5.5341,216.3,216.18,7.23143648]
[1736133126039,7.23143648,216.26,216.21,2.3132]
[1736133127138,9.54423648,216.26,216.21,2.3132]
[1736133130242,2.3126,216.28,216.22,2.3132]
[1736133130446,9.54403648,216.28,216.22,7.23143648]
[1736133130844,7.23143648,216.26,216.2,7.23143648]
[1736133131043,7.23143648,216.24,216.19,2.76]
[1736133131240,7.23143648,216.22,216.18,2.76]
[1736133131645,7.23143648,216.22,216.19,2.3135]
[1736133132846,7.23143648,216.22,216.14,2.314]
[1736133133043,7.23143648,216.2,216.11,1.4827]
[1736133133247,7.23143648,216.2,216.15,2.76]
[1736133133849,7.23143648,216.2,216.16,2.3139]
[1736133134042,7.23143648,216.18,216.15,2.76]
[1736133134442,7.23143648,216.18,216.14,2.314]
[1736133134645,7.23143648,216.18,216.14,5.074]
[1736133134849,7.23143648,216.18,216.14,2.76]
[1736133135045,7.23143648,216.16,216.1,2.8885]
[1736133135242,7.23143648,216.14,216.11,2.76]
[1736133136144,7.23143648,216.14,216.09,2.3146]
[1736133136951,9.54563648,216.14,216.07,12.30613648]
[1736133137449,7.23143648,216.14,216.07,12.30613648]
[1736133138150,2.3142,216.13,216.07,12.30613648]
[1736133138450,2.3142,216.13,216.07,9.99143648]
[1736133138650,2.3142,216.13,216.08,2.3147]
[1736133139748,2.3142,216.13,216.07,2.76]
[1736133139953,7.23143648,216.12,216.05,11.46233648]
[1736133140452,7.23143648,216.12,216.06,2.3148]
[1736133140853,7.23143648,216.12,216.06,9.54623648]
[1736133142048,2.3143,216.13,216.07,2.3148]
[1736133142251,2.76,216.17,216.08,7.23143648]
[1736133142454,7.23143648,216.16,216.08,7.23143648]
[1736133142855,2.3141,216.14,216.09,2.3146]
[1736133143651,9.54553648,216.14,216.09,2.3146]
[1736133144852,7.23143648,216.14,216.09,2.3146]
[1736133147158,2.3142,216.13,216.07,2.3148]
[1736133147353,2.3142,216.13,216.08,7.23143648]
[1736133148659,2.3142,216.13,216.08,9.54613648]
[1736133154261,2.3143,216.12,216.08,7.23143648]
[1736133155963,2.3146,216.09,216.04,5.075]
[1736133157365,2.3146,216.09,216.05,7.23143648]
[1736133158163,2.3141,216.15,216.07,2.3148]
[1736133158366,7.23143648,216.14,216.07,9.54623648]
[1736133159571,2.3144,216.12,216.07,9.54623648]
[1736133159863,5.7106,216.18,216.07,7.23143648]
[1736133160061,9.54543648,216.15,216.09,9.54593648]
[1736133161765,9.54543648,216.15,216.09,7.23143648]
[1736133161963,9.54543648,216.15,216.1,2.3145]
[1736133162670,9.54543648,216.15,216.09,9.54603648]
[1736133162857,7.23143648,216.15,216.09,7.23143648]
[1736133163063,2.3136,216.18,216.11,7.23143648]
[1736133163264,9.54503648,216.18,216.12,2.3143]
[1736133163565,7.23143648,216.18,216.12,2.3143]
[1736133163760,7.23143648,216.16,216.11,2.3144]
[1736133165569,9.54533648,216.16,216.11,2.3144]
[1736133170466,2.3141,216.14,216.09,12.30593648]
[1736133171271,2.3141,216.14,216.09,5.0745]
[1736133172472,2.3142,216.13,216.09,5.0745]
[1736133172678,7.23143648,216.12,216.09,2.76]
[1736133173081,7.23143648,216.12,216.07,2.3148]
[1736133173383,7.23143648,216.1,216.05,5.075]
[1736133174471,2.3146,216.09,216.05,5.075]
[1736133175581,2.3146,216.09,216.05,2.315]
[1736133178581,7.23143648,216.08,216.03,2.76]
[1736133178775,7.23143648,216.06,216.03,2.3152]
[1736133179783,2.3148,216.07,216.03,2.3152]
[1736133179986,9.54623648,216.07,216.03,2.3152]
[1736133181080,9.54613648,216.09,216.03,2.3152]
[1736133182085,9.54613648,216.09,216.05,2.315]
[1736133182086,7.23143648,216.09,216.05,2.315]
[1736133184385,7.23143648,216.09,216.02,2.76]
[1736133184583,9.54603648,216.09,216.04,2.3151]
[1736133185381,7.23143648,216.07,216.04,2.3151]
[1736133185687,7.23143648,216.07,216.03,2.3152]
[1736133186188,7.23143648,216.07,216.01,2.805]
[1736133186488,9.54633648,216.07,216.01,5.1204]
[1736133186689,7.23143648,216.05,216.01,5.1204]
[1736133187684,9.54633648,216.07,216.01,12.35183648]
[1736133188089,2.3147,216.09,216.03,2.3152]
[1736133188289,9.54613648,216.09,216.03,2.3152]
[1736133188989,7.23143648,216.09,216.03,2.3152]
[1736133189189,2.3147,216.08,216.03,2.3152]
[1736133191486,1.4267,216.14,216.01,10.03643648]
[1736133191690,2.3145,216.1,216.05,2.315]
[1736133191892,7.23143648,216.1,216.03,7.23143648]
[1736133192094,148.37862505,216.17,216.05,7.23143648]
[1736133192282,148.37862505,216.17,216.05,9.99143648]
[1736133192283,7.23143648,216.13,216.05,9.99143648]
[1736133193490,7.23143648,216.11,216.05,2.76]
[1736133193689,7.23143648,216.09,216.05,2.76]
[1736133196091,7.23143648,216.09,216.05,5.0749]
[1736133196293,2.3145,216.1,216.05,5.0749]
[1736133197099,7.23143648,216.11,216.07,2.3148]
[1736133200894,7.23143648,216.11,216.08,2.3147]
[1736133201703,7.23143648,216.11,216.07,2.3148]
[1736133202298,7.23143648,216.11,216.05,2.76]
[1736133202299,9.54583648,216.11,216.06,2.3149]
[1736133202503,7.23143648,216.09,216.05,2.76]
[1736133203501,7.23143648,216.09,216.05,5.075]
[1736133205407,9.54603648,216.09,216.05,5.075]
[1736133205600,7.23143648,216.07,216.02,2.76]
[1736133206004,7.23143648,216.07,216.02,5.0753]
[1736133206507,2.3148,216.08,216.03,2.3152]
[1736133214714,2.3148,216.08,216.02,2.76]
[1736133214920,2.3148,216.08,216.04,2.3151]
[1736133216322,2.315,216.06,216.01,5.0754]
[1736133216711,7.23143648,216.07,216.01,2.76]
[1736133217122,7.23143648,216.07,216.01,9.99143648]
[1736133217722,7.23143648,216.09,216.01,9.99143648]
[1736133218326,7.23143648,216.09,216.05,2.315]
[1736133218517,7.23143648,216.09,216.01,9.99143648]
[1736133218923,7.23143648,216.09,216.05,2.315]
[1736133222227,2.3145,216.1,216.05,2.315]
[1736133222433,9.54593648,216.1,216.05,2.315]
[1736133222827,7.23143648,216.1,216.02,7.23143648]
[1736133223128,7.23143648,216.1,216.06,2.3149]
[1736133224930,9.54593648,216.1,216.06,2.3149]
[1736133226529,7.23143648,216.1,216.06,2.3149]
[1736133227235,2.3142,216.14,216.09,2.3146]
[1736133227430,7.23143648,216.13,216.09,2.3146]
[1736133227631,7.23143648,216.13,216.06,7.23143648]
[1736133227833,7.23143648,216.13,216.06,9.99143648]
[1736133228539,7.23143648,216.11,216.08,2.3147]
[1736133232132,2.3142,216.13,216.08,2.3147]
[1736133232133,7.23143648,216.12,216.08,2.3147]
[1736133233441,7.23143648,216.12,216.09,2.3145]
[1736133234840,6.3395066,216.18,216.06,9.99143648]
[1736133234841,7.23143648,216.14,216.08,7.23143648]
[1736133235143,7.23143648,216.16,216.08,7.23143648]
[1736133236742,128.48458372,216.2,216.12,7.23143648]
[1736133237041,9.54493648,216.2,216.12,9.99143648]
[1736133237536,9.54493648,216.2,216.14,2.314]
[1736133239038,2.3132,216.22,216.17,2.3137]
[1736133239241,9.54463648,216.22,216.17,2.3137]
[1736133239542,9.54463648,216.22,216.14,7.23143648]
[1736133239740,9.54463648,216.22,216.16,2.3139]
[1736133240244,7.23143648,216.2,216.16,2.3139]
[1736133243941,7.23143648,216.18,216.14,2.314]
[1736133245046,7.23143648,216.18,216.13,2.9208]
[1736133245247,7.23143648,216.18,216.15,2.314]
[1736133246552,2.3136,216.19,216.15,2.314]
[1736133246754,2.3134,216.2,216.15,2.314]
[1736133246946,7.23143648,216.18,216.15,2.314]
[1736133248052,9.54483648,216.2,216.15,2.314]
[1736133250951,7.23143648,216.18,216.15,2.314]
[1736133251458,7.23143648,216.18,216.14,2.3141]
[1736133251656,7.23143648,216.18,216.1,7.23143648]
[1736133251857,9.54533648,216.16,216.11,2.76]
[1736133252457,7.23143648,216.14,216.11,5.0744]
[1736133252858,7.23143648,216.14,216.11,2.76]
[1736133253758,7.23143648,216.14,216.1,5.0745]
[1736133254563,7.23143648,216.14,216.1,2.3145]
[1736133254755,9.54553648,216.14,216.1,2.3145]
[1736133256557,7.23143648,216.12,216.08,2.76]
[1736133257255,7.23143648,216.12,216.08,5.0747]
[1736133257763,2.3143,216.13,216.09,2.3146]
[1736133261567,7.23143648,216.14,216.1,2.3145]
[1736133262163,9.54553648,216.14,216.1,2.3145]
[1736133263061,7.23143648,216.14,216.11,2.3144]
[1736133263265,7.23143648,216.16,216.08,9.99143648]
[1736133263558,7.23143648,216.16,216.1,7.23143648]
[1736133263976,7.23143648,216.16,216.12,2.3142]
[1736133272778,4.4445,216.21,216.08,9.99143648]
[1736133272977,2.3136,216.19,216.1,7.23143648]
[1736133273273,126.17108372,216.23,216.14,7.23143648]
[1736133273481,7.23143648,216.22,216.18,2.3136]
[1736133275769,7.23143648,216.22,216.16,7.23143648]
[1736133275984,7.23143648,216.22,216.2,2.3134]
[1736133276578,7.23143648,216.22,216.19,2.3135]
[1736133278580,2.3128,216.26,216.2,2.3134]
[1736133278878,7.23143648,216.24,216.2,2.3134]
[1736133281975,7.23143648,216.24,216.21,2.3133]
[1736133287084,2.3128,216.26,216.21,2.3133]
[1736133287284,7.23143648,216.24,216.21,2.3133]
[1736133288689,2.74,216.31,216.18,7.23143648]
[1736133288886,7.23143648,216.25,216.22,2.3131]
[1736133291186,7.23143648,216.25,216.2,2.74]
[1736133291389,9.54433648,216.25,216.2,5.0534]
[1736133291782,7.23143648,216.23,216.2,2.74]
[1736133291982,2.3132,216.22,216.2,2.74]
[1736133292188,7.23143648,216.23,216.2,2.74]
[1736133292790,7.23143648,216.23,216.2,5.0534]
[1736133296283,7.23143648,216.23,216.2,2.3134]
[1736133297292,9.54433648,216.25,216.2,2.3134]
[1736133298502,2.313,216.24,216.2,2.3134]
[1736133300005,9.54443648,216.24,216.2,2.3134]
[1736133300507,2.3131,216.23,216.19,2.3135]
[1736133300806,7.23143648,216.24,216.18,2.74]
[1736133301404,2.3133,216.22,216.18,5.0536]
[1736133302702,2.3131,216.23,216.19,2.3135]
[1736133303101,134.94981162,216.3,216.18,9.97143648]
[1736133303303,9.54433648,216.26,216.18,9.97143648]
[1736133303609,7.23143648,216.26,216.2,7.23143648]
[1736133303809,9.54413648,216.28,216.24,2.313]
[1736133304202,7.23143648,216.28,216.24,2.313]
[1736133304606,131.78758372,216.32,216.24,2.313]
[1736133304904,9.54393648,216.29,216.24,2.313]
[1736133308513,2.8765,216.32,216.25,2.3128]
[1736133308514,2.3124,216.31,216.25,2.3128]
[1736133308714,127.63858372,216.34,216.23,2.74]
[1736133308715,126.17108372,216.34,216.26,7.23143648]
[1736133308907,133.4025202,216.34,216.28,7.23143648]